lending/lending_fUSD_20250819
["ID","MTS","AMOUNT","RATE_DAILY","PERIOD"]
[380298575,1755645040646,-309.369611,0.00012333,2]
[380298576,1755645040656,-151.0,0.00012333,2]
[380298577,1755645040665,-151.0,0.00012333,2]
[380298578,1755645040675,-151.0,0.00012333,2]
[380298579,1755645040685,-151.0,0.00012333,2]
[380298580,1755645040694,-153.057246,0.00012333,2]
[380298581,1755645040704,-151.0,0.00012333,2]
[380298582,1755645040713,-151.0,0.00012333,2]
[380298583,1755645040722,-151.0,0.00012333,2]
[380298584,1755645040732,-151.0,0.00012333,2]
[380298585,1755645040741,-151.0,0.00012333,2]
[380298586,1755645040751,-151.0,0.00012333,2]
[380298587,1755645040760,-151.0,0.00012333,2]
[380298588,1755645040769,-172.446223,0.00012333,2]
[380298589,1755645040779,-151.0,0.00012333,2]
[380298590,1755645040788,-151.0,0.00012333,2]
[380298591,1755645040798,-151.0,0.00012333,2]
[380298592,1755645040807,-151.0,0.00012333,2]
[380298593,1755645040819,-151.0,0.00012333,2]
[380298594,1755645040829,-151.0,0.00012333,2]
[380298595,1755645040838,-317.229041,0.00012333,2]
[380298596,1755645040848,-317.229041,0.00012333,2]
[380298597,1755645040857,-317.229041,0.00012333,2]
[380298598,1755645040867,-317.229041,0.00012333,2]
[380298599,1755645040877,-321.43622,0.00012333,2]
[380298600,1755645040886,-321.43622,0.00012333,2]
[380298601,1755645040896,-151.0,0.00012333,2]
[380298602,1755645040905,-321.43622,0.00012333,2]
[380298603,1755645040915,-151.0,0.00012333,2]
[380298604,1755645040924,-321.43622,0.00012333,2]
[380298605,1755645040933,-151.0,0.00012333,2]
[380298606,1755645040943,-151.0,0.00012333,2]
[380298607,1755645040953,-151.0,0.00012333,2]
[380298608,1755645040962,-151.0,0.00012333,2]
[380298609,1755645040974,-151.0,0.00012333,2]
[380298610,1755645040984,-151.0,0.00012333,2]
[380298611,1755645040993,-151.0,0.00012333,2]
[380298612,1755645041003,-151.0,0.00012333,2]
[380298613,1755645041012,-151.0,0.00012333,2]
[380298614,1755645041022,-151.0,0.00012333,2]
[380298615,1755645041031,-151.0,0.00012333,2]
[380298616,1755645041041,-151.0,0.00012333,2]
[380298617,1755645041051,-151.0,0.00012333,2]
[380298618,1755645041061,-151.0,0.00012333,2]
[380298619,1755645041072,-263.469567,0.00012333,2]
[380298620,1755645041082,-187.058792,0.00012333,2]
[380298621,1755645041091,-187.058792,0.00012333,2]
[380298622,1755645041101,-466.255572,0.00012333,2]
[380298623,1755645041110,-187.058792,0.00012333,2]
[380298624,1755645041120,-466.255572,0.00012333,2]
[380298625,1755645041130,-187.058792,0.00012333,2]
[380298626,1755645041139,-466.255572,0.00012333,2]
[380298627,1755645041149,-151.0,0.00012333,2]
[380298628,1755645041158,-151.0,0.00012333,2]
[380298629,1755645041168,-151.0,0.00012333,2]
[380298630,1755645041177,-466.255572,0.00012333,2]
[380298631,1755645041187,-151.0,0.00012333,2]
[380298632,1755645041196,-263.469567,0.00012333,2]
[380298633,1755645041206,-263.469567,0.00012333,2]
[380298634,1755645041215,-263.469567,0.00012333,2]
[380298635,1755645041225,-151.0,0.00012333,2]
[380298636,1755645041234,-151.0,0.00012333,2]
[380298637,1755645041244,-151.0,0.00012333,2]
[380298638,1755645041254,-285.05531,0.00012333,2]
[380298639,1755645041264,-151.0,0.00012333,2]
[380298640,1755645041274,-151.0,0.00012333,2]
[380298641,1755645041283,-151.0,0.00012333,2]
[380298642,1755645041293,-152.696653,0.00012333,2]
[380298643,1755645041304,-159.806152,0.00012333,2]
[380298644,1755645041314,-502.149321,0.00012333,2]
[380298645,1755645041325,-502.149321,0.00012333,2]
[380298646,1755645041335,-151.0,0.00012333,2]
[380298647,1755645041346,-151.0,0.00012333,2]
[380298648,1755645041356,-502.149321,0.00012333,2]
[380298649,1755645041366,-502.149321,0.00012333,2]
[380298650,1755645041375,-435.296319,0.00012333,2]
[380298651,1755645041385,-151.0,0.00012333,2]
[380298652,1755645041395,-435.296319,0.00012333,2]
[380298653,1755645041404,-151.0,0.00012333,2]
[380298654,1755645041414,-151.0,0.00012333,2]
[380298655,1755645041425,-435.296319,0.00012333,2]
[380298656,1755645041434,-152.189302,0.00012333,2]
[380298657,1755645041444,-151.0,0.00012333,2]
[380298658,1755645041454,-435.296319,0.00012333,2]
[380298659,1755645041463,-151.0,0.00012344,2]
[380298660,1755645041473,-8393.212576,0.00012344,2]
[380298661,1755645041482,-8393.212576,0.00012344,2]
[380298662,1755645041491,-151.0,0.00012344,2]
[380298663,1755645041501,-8393.212576,0.00012344,2]
[380298664,1755645041510,-287.454616,0.00012344,2]
[380298665,1755645041519,-151.0,0.00012344,2]
[380298666,1755645041529,-287.454616,0.00012344,2]
[380298667,1755645041538,-8393.212576,0.00012344,2]
[380298668,1755645041547,-151.0,0.00012344,2]
[380298669,1755645041556,-151.0,0.00012344,2]
[380298670,1755645041565,-275.829102,0.00012344,2]
[380298671,1755645041575,-287.454616,0.00012344,2]
[380298672,1755645041584,-151.0,0.00012344,2]
[380298673,1755645041594,-287.454616,0.00012344,2]
[380298674,1755645041604,-275.829102,0.00012344,2]
[380298675,1755645041613,-275.829102,0.00012344,2]
[380298676,1755645041622,-151.0,0.00012344,2]
[380298677,1755645041632,-275.829102,0.00012344,2]
[380298678,1755645041641,-151.0,0.00012344,2]
[380298679,1755645041651,-151.0,0.00012344,2]
[380298680,1755645041660,-151.0,0.00012344,2]
[380298681,1755645041669,-925.596752,0.00012344,2]
[380298682,1755645041679,-151.0,0.00012344,2]
[380298683,1755645041688,-151.0,0.00012344,2]
[380298684,1755645041697,-925.596752,0.00012344,2]
[380298685,1755645041706,-151.0,0.00012344,2]
[380298686,1755645041715,-151.0,0.00012344,2]
[380298687,1755645041724,-925.596752,0.00012344,2]
[380298688,1755645041734,-288.015867,0.00012344,2]
[380298689,1755645041743,-151.0,0.00012344,2]
[380298690,1755645041752,-151.0,0.00012344,2]
[380298691,1755645041761,-925.596752,0.00012344,2]
[380298692,1755645041770,-151.0,0.00012344,2]
[380298693,1755645041779,-151.0,0.00012344,2]
[380298694,1755645041790,-1457.668293,0.00012344,2]
[380298695,1755645041800,-151.0,0.00012344,2]
[380298696,1755645041809,-1457.668293,0.00012344,2]
[380298697,1755645041819,-1457.668293,0.00012344,2]
[380298698,1755645041829,-1457.668293,0.00012344,2]
[380298699,1755645041838,-419.804674,0.00012344,2]
[380298700,1755645041848,-419.804674,0.00012344,2]
[380298701,1755645041858,-419.804674,0.00012344,2]
[380298702,1755645041867,-419.804674,0.00012344,2]
[380298703,1755645041878,-151.0,0.00012344,2]
[380298704,1755645041889,-151.0,0.00012344,2]
[380298705,1755645041899,-151.0,0.00012344,2]
[380298706,1755645041909,-151.0,0.00012344,2]
[380298707,1755645041919,-151.0,0.00012344,2]
[380298708,1755645041929,-4541.024701,0.00012344,2]
[380298709,1755645041939,-151.0,0.00012344,2]
[380298710,1755645041949,-4541.024701,0.00012344,2]
[380298711,1755645041958,-236.208573,0.00012344,2]
[380298712,1755645041968,-4541.024701,0.00012344,2]
[380298713,1755645041980,-4541.024701,0.00012344,2]
[380298714,1755645041989,-260.13737,0.00012344,2]
[380298715,1755645041999,-157.783593,0.00012344,2]
[380298716,1755645042009,-157.783593,0.00012344,2]
[380298717,1755645042019,-157.783593,0.00012344,2]
[380298718,1755645042029,-919.606085,0.00012344,2]
[380298719,1755645042039,-151.0,0.00012344,2]
[380298720,1755645042049,-157.783593,0.00012344,2]
[380298721,1755645042059,-919.606085,0.00012344,2]
[380298722,1755645042069,-151.0,0.00012344,2]
[380298723,1755645042078,-249.40441,0.00012344,2]
[380298724,1755645042088,-151.0,0.00012344,2]
[380298725,1755645042098,-151.0,0.00012344,2]
[380298726,1755645042108,-951.594588,0.00012344,2]
[380298727,1755645042118,-919.606085,0.00012344,2]
[380298728,1755645042127,-249.40441,0.00012344,2]
[380298729,1755645042136,-151.0,0.00012344,2]
[380298730,1755645042146,-951.594588,0.00012344,2]
[380298731,1755645042155,-197.190977,0.00012344,2]
[380298732,1755645042164,-446.171172,0.00012344,2]
[380298733,1755645042173,-919.606085,0.00012344,2]
[380298734,1755645042182,-151.0,0.00012344,2]
[380298735,1755645042191,-249.40441,0.00012344,2]
[380298736,1755645042200,-951.594588,0.00012344,2]
[380298737,1755645042210,-446.171172,0.00012344,2]
[380298738,1755645042219,-249.40441,0.00012344,2]
[380298739,1755645042228,-260.13737,0.00012344,2]
[380298740,1755645042238,-951.594588,0.00012344,2]
[380298741,1755645042247,-260.13737,0.00012344,2]
[380298742,1755645042256,-67342.6535881,0.00012344,2]
[380298743,1755645042265,-500.0,0.0001237,2]
[380298744,1755645042275,-517.0,0.0001237,2]
[380298745,1755645042284,-500.0,0.0001237,2]
[380298746,1755645042294,-300.0,0.0001237,2]
[380298747,1755645042303,-500.0,0.0001237,2]
[380298748,1755645042313,-168.70482482,0.000124,2]
[380298749,1755645042323,-3421.18,0.000125,7]
[380298750,1755645042333,-855.29,0.000125,7]
[380298751,1755645042342,-2565.88,0.000125,7]
[380298752,1755645042351,-15861.77,0.000125,2]
[380298753,1755645042360,-2685.97,0.000125,7]
[380298754,1755645042370,-749.25,0.00012516,2]
[380298755,1755645042379,-1000.0,0.00012522,2]
[380298756,1755645042388,-198.16,0.00012535,2]
[380298757,1755645042398,-169.9,0.00012591,2]
[380298758,1755645042407,-67342.6535881,0.00012633,2]
[380298759,1755645042417,-500.0,0.00012644,2]
[380298760,1755645042427,-517.0,0.00012644,2]
[380298761,1755645042436,-500.0,0.00012644,2]
[380298762,1755645042445,-300.0,0.00012644,2]
[380298763,1755645042455,-500.0,0.00012644,2]
[380298768,1755645042602,-3421.18,0.000127,7]
[380298769,1755645042611,-855.29,0.000127,7]
[380298770,1755645042621,-2565.88,0.000127,7]
[380298771,1755645042630,-2685.97,0.000127,7]
[380298772,1755645042639,-500.0,0.00012761,2]
[380298773,1755645042649,-500.0,0.00012918,2]
[380298774,1755645042658,-517.0,0.00012918,2]
[380298775,1755645042667,-500.0,0.00012918,2]
[380298776,1755645042678,-244.37731544,0.00012918,2]
[380298777,1755645042688,-315.0,0.00012918,2]
[380298778,1755645042699,-67342.6535881,0.00012922,2]
[380298779,1755645042709,-200.028076,0.00012982,2]
[380298780,1755645042720,-151.0,0.00012982,2]
[380298781,1755645042730,-285.649156,0.00012982,2]
[380298782,1755645042739,-151.0,0.00012982,2]
[380298783,1755645042748,-551.065868,0.00012982,2]
[380298784,1755645042757,-285.649156,0.00012982,2]
[380298785,1755645042766,-255.631739,0.00012982,2]
[380298786,1755645042775,-151.0,0.00012982,2]
[380298787,1755645042784,-285.649156,0.00012982,2]
[380298788,1755645042793,-551.065868,0.00012982,2]
[380298789,1755645042802,-468.325856,0.00012982,2]
[380298790,1755645042811,-551.065868,0.00012982,2]
[380298791,1755645042821,-151.0,0.00012982,2]
[380298792,1755645042830,-468.325856,0.00012982,2]
[380298793,1755645042839,-285.649156,0.00012982,2]
[380298794,1755645042848,-551.065868,0.00012982,2]
[380298795,1755645042857,-468.325856,0.00012982,2]
[380298796,1755645042867,-818.699908,0.00012982,2]
[380298797,1755645042876,-468.325856,0.00012982,2]
[380298798,1755645042885,-818.699908,0.00012982,2]
[380298799,1755645042894,-818.699908,0.00012982,2]
[380298800,1755645042903,-174.861886,0.00012982,2]
[380298801,1755645042912,-151.0,0.00012982,2]
[380298802,1755645042921,-818.699908,0.00012982,2]
[380298803,1755645042930,-174.861886,0.00012982,2]
[380298804,1755645042939,-174.861886,0.00012982,2]
[380298805,1755645042948,-174.861886,0.00012982,2]
[380298806,1755645042957,-237.222719,0.00012982,2]
[380298807,1755645042966,-237.222719,0.00012982,2]
[380298808,1755645042979,-370.785828,0.00012982,2]
[380298809,1755645042988,-237.222719,0.00012982,2]
[380298810,1755645042997,-370.785828,0.00012982,2]
[380298811,1755645043006,-237.222719,0.00012982,2]
[380298812,1755645043015,-370.785828,0.00012982,2]
[380298813,1755645043024,-370.785828,0.00012982,2]
[380298814,1755645043034,-151.0,0.00012982,2]
[380298815,1755645043043,-200.828727,0.00012982,2]
[380298816,1755645043052,-151.0,0.00012982,2]
[380298817,1755645043062,-151.0,0.00012982,2]
[380298818,1755645043072,-151.0,0.00012982,2]
[380298819,1755645043081,-200.828727,0.00012982,2]
[380298820,1755645043091,-151.0,0.00012982,2]
[380298821,1755645043100,-200.828727,0.00012982,2]
[380298822,1755645043109,-151.0,0.00012982,2]
[380298824,1755645043119,-200.828727,0.00012982,2]
[380298826,1755645043129,-253.941086,0.00012982,2]
[380298827,1755645043138,-151.0,0.00012982,2]
[380298828,1755645043147,-151.0,0.00012982,2]
[380298829,1755645043156,-302.327394,0.00012982,2]
[380298831,1755645043166,-151.0,0.00012982,2]
[380298833,1755645043175,-302.327394,0.00012982,2]
[380298835,1755645043184,-151.0,0.00012982,2]
[380298837,1755645043192,-302.327394,0.00012982,2]
[380298839,1755645043202,-151.0,0.00012982,2]
[380298840,1755645043211,-151.0,0.00012982,2]
[380298841,1755645043220,-151.0,0.00012982,2]
[380298842,1755645043230,-302.327394,0.00012982,2]
[380298843,1755645043239,-151.0,0.00012982,2]
[380298844,1755645043248,-219.212768,0.00012982,2]
[380298845,1755645043258,-151.0,0.00012982,2]
[380298846,1755645043268,-151.0,0.00012982,2]
[380298847,1755645043277,-219.212768,0.00012982,2]
[380298848,1755645043287,-151.0,0.00012982,2]
[380298849,1755645043296,-219.212768,0.00012982,2]
[380298850,1755645043305,-324.463709,0.00012982,2]
[380298851,1755645043315,-219.212768,0.00012982,2]
[380298852,1755645043327,-324.463709,0.00012982,2]
[380298853,1755645043337,-324.463709,0.00012982,2]
[380298854,1755645043346,-151.0,0.00012982,2]
[380298855,1755645043356,-151.0,0.00012982,2]
[380298856,1755645043364,-324.463709,0.00012982,2]
[380298857,1755645043374,-151.0,0.00012982,2]
[380298858,1755645043383,-151.0,0.00012982,2]
[380298859,1755645043394,-151.173052,0.00012982,2]
[380298860,1755645043403,-151.0,0.00012982,2]
[380298861,1755645043413,-151.0,0.00012982,2]
[380298862,1755645043423,-151.0,0.00012982,2]
[380298863,1755645043433,-151.0,0.00012982,2]
[380298864,1755645043443,-978.977009,0.00012982,2]
[380298865,1755645043452,-978.977009,0.00012982,2]
[380298866,1755645043462,-978.977009,0.00012982,2]
[380298867,1755645043472,-978.977009,0.00012982,2]
[380298868,1755645043481,-193.223135,0.00012982,2]
[380298869,1755645043491,-193.223135,0.00012982,2]
[380298870,1755645043500,-151.0,0.00012982,2]
[380298871,1755645043510,-151.0,0.00012982,2]
[380298872,1755645043519,-193.223135,0.00012982,2]
[380298873,1755645043529,-151.0,0.00012982,2]
[380298874,1755645043538,-193.223135,0.00012982,2]
[380298875,1755645043547,-136124.77446792,0.00012982,2]
[380298876,1755645043557,-3399.80155333,0.00013,2]
[380298877,1755645043566,-2096.90185,0.00013,2]
[380298878,1755645043576,-150.0,0.00013082,2]
[380298879,1755645043586,-178.768,0.00013082,2]
[380298880,1755645043595,-3371.0,0.00013082,2]
[380298881,1755645043605,-1255.0,0.00013082,2]
[380298882,1755645043614,-2042.584,0.00013082,2]
[380298883,1755645043623,-904.0,0.00013082,2]
[380298884,1755645043632,-1297.0,0.00013082,2]
[380298885,1755645043642,-672.91,0.00013082,2]
[380298886,1755645043651,-608.265,0.00013082,2]
[380298887,1755645043660,-21497.0,0.00013082,2]
[380298888,1755645043669,-4152.0,0.00013082,2]
[380298889,1755645043679,-894.0,0.00013082,2]
[380298890,1755645043688,-1172.0,0.00013082,2]
[380298891,1755645043697,-3421.18,0.000131,7]
[380298892,1755645043706,-855.29,0.000131,7]
[380298893,1755645043715,-2565.88,0.000131,7]
[380298894,1755645043724,-2685.97,0.000131,7]
[380298895,1755645043733,-433.0,0.0001318,2]
[380298896,1755645043742,-439.0,0.00013192,2]
[380298897,1755645043751,-517.0,0.00013192,2]
[380298898,1755645043760,-500.0,0.00013192,2]
[380298899,1755645043769,-67342.6535881,0.00013211,2]
[380298900,1755645043779,-1955.0,0.00013267,2]
[380298901,1755645043788,-860.56205838,0.000133,2]
[380298902,1755645043797,-151.0,0.000133,2]
[380298903,1755645043806,-151.0,0.000133,2]
[380298904,1755645043815,-151.0,0.000133,2]
[380298905,1755645043826,-151.298297,0.000133,2]
[380298906,1755645043835,-284.13,0.000133,2]
[380298907,1755645043844,-136124.77446792,0.00013399,2]
[380298908,1755645043854,-517.0,0.00013466,2]
[380298909,1755645043863,-500.0,0.00013466,2]
[380298910,1755645043872,-67342.6535881,0.000135,2]
[380298911,1755645043882,-150.0,0.00013586,2]
[380298912,1755645043892,-788.60002085,0.00013587,2]
[380298913,1755645043901,-1005.07845795,0.00013587,2]
[380298914,1755645043910,-1221.55689504,0.00013588,2]
[380298915,1755645043920,-1654.51376924,0.00013588,2]
[380298916,1755645043929,-1438.03533214,0.00013588,2]
[380298917,1755645043939,-1870.99220633,0.00013589,2]
[380298918,1755645043948,-2087.47064343,0.00013589,2]
[380298919,1755645043958,-2303.94908052,0.0001359,2]
[380298920,1755645043967,-2520.42751762,0.0001359,2]
[380298921,1755645043981,-3421.18,0.000136,7]
[380298922,1755645043991,-293047.07,0.000136,2]
[380298923,1755645044000,-855.29,0.000136,7]
[380298924,1755645044009,-2565.88,0.000136,7]
[380298925,1755645044019,-284.156198,0.000136,2]
[380298926,1755645044028,-151.0,0.000136,2]
[380298927,1755645044037,-151.0,0.000136,2]
[380298928,1755645044046,-151.0,0.000136,2]
[380298929,1755645044056,-151.0,0.000136,2]
[380298930,1755645044065,-151.0,0.000136,2]
[380298931,1755645044076,-151.0,0.000136,2]
[380298932,1755645044085,-151.0,0.000136,2]
[380298933,1755645044095,-151.0,0.000136,2]
[380298934,1755645044105,-151.0,0.000136,2]
[380298935,1755645044116,-151.0,0.000136,2]
[380298936,1755645044126,-151.0,0.000136,2]
[380298937,1755645044135,-151.0,0.000136,2]
[380298938,1755645044145,-151.0,0.000136,2]
[380298939,1755645044155,-151.0,0.000136,2]
[380298940,1755645044164,-151.0,0.000136,2]
[380298941,1755645044174,-151.617254,0.000136,2]
[380298942,1755645044183,-151.0,0.000136,2]
[380298943,1755645044192,-151.0,0.000136,2]
[380298944,1755645044201,-151.0,0.000136,2]
[380298945,1755645044211,-214.1431,0.000136,2]
[380298946,1755645044220,-151.0,0.000136,2]
[380298947,1755645044229,-214.1431,0.000136,2]
[380298948,1755645044238,-151.0,0.000136,2]
[380298949,1755645044247,-214.1431,0.000136,2]
[380298950,1755645044257,-320.209209,0.000136,2]
[380298951,1755645044266,-214.1431,0.000136,2]
[380298952,1755645044276,-320.209209,0.000136,2]
[380298953,1755645044285,-151.0,0.000136,2]
[380298954,1755645044295,-151.0,0.000136,2]
[380298955,1755645044304,-151.0,0.000136,2]
[380298956,1755645044313,-320.209209,0.000136,2]
[380298957,1755645044323,-151.0,0.000136,2]
[380298958,1755645044332,-151.0,0.000136,2]
[380298959,1755645044342,-320.209209,0.000136,2]
[380298960,1755645044352,-151.0,0.000136,2]
[380298961,1755645044361,-151.0,0.000136,2]
[380298962,1755645044370,-153.061572,0.000136,2]
[380298963,1755645044379,-151.0,0.000136,2]
[380298964,1755645044389,-241.367257,0.000136,2]
[380298965,1755645044398,-151.0,0.000136,2]
[380298966,1755645044407,-151.0,0.000136,2]
[380298967,1755645044417,-151.0,0.000136,2]
[380298968,1755645044426,-151.0,0.000136,2]
[380298969,1755645044436,-151.0,0.000136,2]
[380298970,1755645044445,-151.0,0.000136,2]
[380298971,1755645044454,-251.789406,0.000136,2]
[380298972,1755645044464,-151.0,0.000136,2]
[380298973,1755645044473,-151.0,0.000136,2]
[380298974,1755645044481,-290.332967,0.000136,2]
[380298975,1755645044491,-225.007726,0.000136,2]
[380298976,1755645044500,-225.007726,0.000136,2]
[380298977,1755645044509,-151.0,0.000136,2]
[380298978,1755645044518,-225.007726,0.000136,2]
[380298979,1755645044528,-153.981414,0.000136,2]
[380298980,1755645044537,-225.007726,0.000136,2]
[380298981,1755645044546,-151.0,0.000136,2]
[380298982,1755645044555,-151.0,0.000136,2]
[380298983,1755645044564,-151.0,0.000136,2]
[380298984,1755645044573,-151.0,0.000136,2]
[380298985,1755645044583,-151.0,0.000136,2]
[380298986,1755645044592,-151.0,0.000136,2]
[380298987,1755645044601,-442.515153,0.000136,2]
[380298988,1755645044610,-442.515153,0.000136,2]
[380298989,1755645044619,-442.515153,0.000136,2]
[380298990,1755645044628,-442.515153,0.000136,2]
[380298991,1755645044637,-2685.97,0.000136,7]
[380298992,1755645044647,-151.0,0.000136,2]
[380298993,1755645044657,-151.0,0.000136,2]
[380298994,1755645044666,-211.941035,0.000136,2]
[380298995,1755645044674,-211.941035,0.000136,2]
[380298996,1755645044683,-211.941035,0.000136,2]
[380298997,1755645044692,-211.941035,0.000136,2]
[380298998,1755645044701,-151.0,0.000136,2]
[380298999,1755645044710,-151.0,0.000136,2]
[380299000,1755645044719,-151.0,0.000136,2]
[380299001,1755645044728,-151.0,0.000136,2]
[380299002,1755645044738,-151.0,0.000136,2]
[380299003,1755645044747,-151.0,0.000136,2]
[380299004,1755645044756,-151.0,0.000136,2]
[380299005,1755645044766,-151.0,0.000136,2]
[380299006,1755645044775,-151.0,0.000136,2]
[380299007,1755645044784,-151.0,0.000136,2]
[380299008,1755645044793,-151.0,0.000136,2]
[380299009,1755645044802,-151.0,0.000136,2]
[380299010,1755645044811,-151.0,0.000136,2]
[380299011,1755645044820,-263.469567,0.000136,2]
[380299012,1755645044829,-187.058792,0.000136,2]
[380299013,1755645044838,-187.058792,0.000136,2]
[380299014,1755645044848,-466.255572,0.000136,2]
[380299015,1755645044856,-187.058792,0.000136,2]
[380299016,1755645044866,-466.255572,0.000136,2]
[380299017,1755645044875,-187.058792,0.000136,2]
[380299018,1755645044885,-466.255572,0.000136,2]
[380299019,1755645044894,-151.0,0.000136,2]
[380299020,1755645044904,-151.0,0.000136,2]
[380299021,1755645044913,-151.0,0.000136,2]
[380299022,1755645044922,-466.255572,0.000136,2]
[380299023,1755645044932,-151.0,0.000136,2]
[380299024,1755645044941,-263.469567,0.000136,2]
[380299025,1755645044950,-263.469567,0.000136,2]
[380299026,1755645044960,-263.469567,0.000136,2]
[380299027,1755645044971,-151.0,0.000136,2]
[380299028,1755645044983,-151.0,0.000136,2]
[380299029,1755645044992,-151.0,0.000136,2]
[380299030,1755645045003,-151.0,0.000136,2]
[380299031,1755645045012,-151.0,0.000136,2]
[380299032,1755645045023,-151.0,0.000136,2]
[380299033,1755645045032,-502.149321,0.000136,2]
[380299034,1755645045043,-502.149321,0.000136,2]
[380299035,1755645045054,-151.0,0.000136,2]
[380299036,1755645045064,-152.576165,0.000136,2]
[380299037,1755645045074,-502.149321,0.000136,2]
[380299038,1755645045084,-502.149321,0.000136,2]
[380299039,1755645045093,-435.296319,0.000136,2]
[380299040,1755645045104,-151.0,0.000136,2]
[380299041,1755645045114,-435.296319,0.000136,2]
[380299042,1755645045125,-151.0,0.000136,2]
[380299043,1755645045135,-151.0,0.000136,2]
[380299044,1755645045144,-435.296319,0.000136,2]
[380299045,1755645045154,-190.20556,0.000136,2]
[380299046,1755645045167,-435.296319,0.000136,2]
[380299047,1755645045176,-151.0,0.000136,2]
[380299048,1755645045187,-151.0,0.000136,2]
[380299049,1755645045196,-260.13737,0.000136,2]
[380299050,1755645045206,-157.783593,0.000136,2]
[380299051,1755645045217,-157.783593,0.000136,2]
[380299052,1755645045227,-157.783593,0.000136,2]
[380299053,1755645045238,-151.0,0.000136,2]
[380299054,1755645045248,-919.606085,0.000136,2]
[380299055,1755645045258,-157.783593,0.000136,2]
[380299056,1755645045269,-919.606085,0.000136,2]
[380299057,1755645045278,-151.0,0.000136,2]
[380299058,1755645045288,-249.40441,0.000136,2]
[380299059,1755645045298,-151.0,0.000136,2]
[380299060,1755645045308,-151.0,0.000136,2]
[380299061,1755645045317,-951.594588,0.000136,2]
[380299062,1755645045328,-919.606085,0.000136,2]
[380299063,1755645045338,-249.40441,0.000136,2]
[380299064,1755645045348,-151.0,0.000136,2]
[380299065,1755645045358,-951.594588,0.000136,2]
[380299066,1755645045368,-919.606085,0.000136,2]
[380299067,1755645045377,-151.0,0.000136,2]
[380299068,1755645045387,-249.40441,0.000136,2]
[380299069,1755645045397,-951.594588,0.000136,2]
[380299070,1755645045407,-249.40441,0.000136,2]
[380299071,1755645045417,-260.13737,0.000136,2]
[380299073,1755645045427,-951.594588,0.000136,2]
[380299074,1755645045436,-260.13737,0.000136,2]
[380299076,1755645045446,-150.0,0.00013698,2]
[380299077,1755645045457,-610.0,0.00013699,2]
[380299078,1755645045466,-200.0,0.00013699,2]
[380299079,1755645045477,-5526.4,0.00013699,2]
[380299080,1755645045487,-200.0,0.00013699,2]
[380299081,1755645045497,-200.0,0.00013699,2]
[380299082,1755645045506,-200.0,0.00013699,2]
[380299084,1755645045516,-200.0,0.00013699,2]
[380299085,1755645045526,-200.0,0.00013699,2]
[380299086,1755645045538,-200.0,0.00013699,2]
[380299087,1755645045547,-157.147186,0.00013699,2]
[380299088,1755645045557,-1000.0,0.00013699,2]